[Event "Baku Open 2024"]
[Site "Baku"]
[Date "2024.07.04"]
[Round "6.15"]
[White "Md Imran"]
[Black "Ilamparthi A R"]
[Result "1/2-1/2"]
[ECO "B07"]
[WhiteElo "2180"]
[BlackElo "2446"]
[Annotator "TA"]
[PlyCount "100"]
[EventDate "2024.06.29"]
[EventType "swiss"]
[EventCountry "AZE"]
[SourceTitle "playchess.com"]
[Source "ChessBase"]
[SourceQuality "1"]
[TimeControl "5400+30"]

{[%evp 15,100,30,45,35,33,28,65,55,67,64,64,63,62,65,72,69,72,74,74,79,84,66,114,97,119,107,139,93,101,100,98,73,89,66,116,78,60,40,86,89,128,131,173,172,154,159,151,158,154,137,181,180,179,183,282,228,221,211,205,214,231,222,219,209,348,331,345,341,454,183,179,176,228,220,343,333,333,319,443,384,444,126,116,0,327,0,112]} 1. d4 {[%emt 0:00:01]} d6 {[%emt 0:02:33]} 2. e4 {[%emt 0:00:14]} Nf6 {[%emt 0:00:10]} 3. Nc3 {[%emt 0:00:04]} e5 {[%emt 0:00:11]} 4. dxe5 {[%emt 0:00:04]} dxe5 {[%emt 0:00:10]} 5. Qxd8+ {[%emt 0:00:06]} Kxd8 {[%emt 0:00:06]} 6. Bc4 {[%emt 0:00:03]} Be6 {[%emt 0:07:06]} 7. Bxe6 {[%emt 0:00:37]} fxe6 {[%emt 0:00:02]} 8. f3 {[%emt 0:00:45]} Bd6 {[%emt 0:00:09]} 9. Nd1 {[%emt 0:05:13]} Ke7 {[%emt 0:00:06]} 10. Ne3 {[%emt 0:03:25]} Nbd7 {[%emt 0:00:19]} 11. Bd2 {[%emt 0:00:30] White is slightly better.} b5 {[%emt 0:00:45]} 12. Nh3 {[%emt 0:00:49]} Rhb8 {[%emt 0:05:23]} 13. Nf2 {[%emt 0:00:28]} Nb6 {[%emt 0:02:20]} 14. Ke2 {[%emt 0:01:11]} Nfd7 {[%emt 0:04:05]} 15. h4 {[%emt 0:00:34][%cal Bh2h4,Bh4h5,Bh5h6][%mdl 32]} a5 {[%emt 0:01:46]} 16. h5 {[%emt 0:00:37]} a4 {[%emt 0:10:55]} 17. h6 {[%emt 0:00:16]} g6 {[%emt 0:00:09]} 18. b3 {[%emt 0:01:18]} c5 {[%emt 0:13:49]} (18... Nf6 $14) 19. Nh3 {[%emt 0:04:29][%cal Bf2h3,Bh3g5,Bg5e6][%mdl 32]} Rc8 {[%emt 0:04:47]} 20. Ng5 {[%emt 0:02:19]} Nf6 {[%emt 0:00:11]} 21. Ng4 {[%emt 0:01:06] White is much more active.} ({Better is} 21. Rhb1) 21... Nbd7 $16 {[%emt 0:00:09]} 22. Nxf6 {[%emt 0:00:25]} Nxf6 {[%emt 0:00:03]} 23. Rhd1 {[%emt 0:04:15]} Ra6 {[%emt 0:15:49]} 24. Be1 {[%emt 0:09:16]} Ke8 {[%emt 0:09:26]} (24... Rcc6 $14) 25. Nxe6 {[%emt 0:06:20]} Be7 {[%emt 0:00:01]} 26. Ng5 {[%emt 0:02:48]} Bf8 {[%emt 0:00:46]} (26... Ng8 $14 {might be stronger.} 27. Nxh7 Nxh6) 27. Bd2 {[%emt 0:01:56]} Rc7 {[%emt 0:03:26]} 28. bxa4 {[%emt 0:01:14]} b4 {[%emt 0:02:18][%cal Oc7a7]} 29. a3 {[%emt 0:07:19]} Bxh6 {[%emt 0:01:24] [#]} 30. Ne6 $1 {[%emt 0:02:06][%mdl 512]} Rxe6 {[%emt 0:01:09]} 31. Bxh6 {[%emt 0:00:03]} Ra6 {[%emt 0:01:00]} 32. Bd2 {[%emt 0:01:55]} Nh5 {[%emt 0:03:52]} 33. axb4 {[%emt 0:02:18]} cxb4 {[%emt 0:00:07]} 34. Ra2 {[%emt 0:00:21]} ({Don't play} 34. Bxb4 Rxc2+ 35. Rd2 Nf4+ 36. Kf1 Rc4) 34... Rc4 {[%emt 0:02:37]} (34... Nf4+ {might work better.} 35. Bxf4 exf4) 35. a5 {[%emt 0:01:26]} Nf4+ {[%emt 0:02:54]} 36. Bxf4 {[%emt 0:00:14]} exf4 $18 {[%emt 0:00:02][%mdl 4096] Endgame. KRR-KRR} 37. Rd5 {[%emt 0:01:01]} Rc3 {[%emt 0:00:48] [#]} 38. Kd2 $1 {[%emt 0:00:22]} Ke7 {[%emt 0:01:52]} 39. Rb5 {[%emt 0:02:08]} Rc4 {[%emt 0:05:27]} (39... Kd6 $142 40. Rxb4 Rc5 41. Rb6+ Rxb6 42. axb6 Rb5) 40. Kd3 {[%emt 0:01:59]} Rc3+ {[%emt 0:00:02]} 41. Kd4 {[%emt 0:03:11]} Ra3 {[%emt 0:02:06]} 42. Rb2 {[%emt 0:01:46]} (42. Rxa3 $142 bxa3 43. Kc3) 42... R3xa5 {[%emt 0:00:26]} 43. R2xb4 {[%emt 0:00:37]} Ra2 {[%emt 0:00:34]} (43... Rxb5 $142 44. Rxb5 Ke6) 44. Rb7+ {[%emt 0:01:08]} Kf6 {[%emt 0:00:02]} (44... Ke6 $142 45. R7b6+ (45. Rxh7 Rxc2 46. Kd3 Rxg2 $11) 45... Rxb6 46. Rxb6+ Ke7) 45. R7b6+ {[%emt 0:01:37]} (45. Rxh7 Rxc2 46. e5+ Kg5 $11) 45... Rxb6 {[%emt 0:00:29]} 46. Rxb6+ {[%emt 0:00:01]} Kg5 {[%emt 0:00:01]} 47. Rc6 {[%emt 0:00:57]} Ra1 {[%emt 0:00:08]} 48. Rc5+ $2 {[%emt 0:12:06]} (48. c4 $18 {is more deadly.}) 48... Kf6 $16 {[%emt 0:00:50]} 49. Rc6+ $2 {[%emt 0:03:08]} (49. Rd5 $16) 49... Kg5 $18 {[%emt 0:00:02]} 50. Rc5+ $2 {[%emt 0:00:12]} (50. Rd6 $18 {has better winning chances.}) 50... Kf6 {[%emt 0:00:02] Weighted Error Value: White=0.39/Black=0.26 (precise) .  Missed win:     	White=2     	---        Mistake:       	White=3     	Black=7      Inaccurate:     	White=1     	Black=6      OK:         	White=18    	Black=8      Best:        	White=3     	Black=6} 1/2-1/2

[Event "Baku Open 2024"]
[Site "Baku"]
[Date "2024.07.04"]
[Round "6.16"]
[White "Salimova, Nurgyul"]
[Black "Novozhilov, Semen"]
[Result "0-1"]
[ECO "A45"]
[WhiteElo "2436"]
[BlackElo "2288"]
[Annotator "TA"]
[PlyCount "110"]
[EventDate "2024.06.29"]
[EventType "swiss"]
[EventCountry "AZE"]
[SourceTitle "playchess.com"]
[Source "ChessBase"]
[SourceQuality "1"]
[TimeControl "5400+30"]

{[%evp 14,110,16,12,20,9,19,0,19,0,0,0,0,0,0,-3,43,23,75,73,84,10,70,71,79,53,62,0,32,32,39,41,38,35,27,35,32,35,23,33,37,0,0,-48,29,0,0,0,0,0,0,0,0,-15,-17,-189,-176,-164,-151,-133,0,-297,-268,-293,-274,-233,-182,-327,-335,-408,-221,-370,-212,-211,-216,-480,-139,-531,-531,-573,-572,-655,-572,-700,-572,-572,-572,-885,-885,-1491,-1449,-1538,-1473,-5314,-4641,-29980,-9878,-29988,-29984]} 1. d4 {[%emt 0:00:05]} Nf6 {[%emt 0:00:07]} 2. Bg5 {[%emt 0:00:48]} e6 {[%emt 0:00:12]} 3. e4 {[%emt 0:01:32]} h6 {[%emt 0:00:22]} 4. Bxf6 {[%emt 0:00:08]} Qxf6 {[%emt 0:00:05]} 5. Nc3 {[%emt 0:00:22]} d5 {[%emt 0:00:41]} 6. a3 {[%emt 0:01:35] A45: Trompowsky Attack.} c6 {[%emt 0:00:07]} 7. Nf3 {[%emt 0:01:12]} Nd7 {[%emt 0:00:10]} 8. Bd3 {[%emt 0:00:32]} Qd8 {[%emt 0:00:13]} 9. Qe2 {[%emt 0:01:23]} Be7 {[%emt 0:03:54]} 10. h4 {[%emt 0:02:04]} a6 $146 {[%emt 0:23:24]} ({Predecessor:} 10... b6 11. O-O-O Bb7 12. Rh3 Qc7 13. Rg3 g6 14. exd5 cxd5 15. Bb5 a6 16. Bxd7+ Qxd7 {1-0 Aronian,L (2742)-So,W (2753) Chess.com Speed Chess blitz 2023 (1)}) 11. Kf1 {[%emt 0:18:01]} b5 {[%emt 0:11:33]} 12. Re1 {[%emt 0:04:18]} Bb7 {[%emt 0:04:42]} 13. exd5 {[%emt 0:02:26]} cxd5 {[%emt 0:00:13]} 14. Nd1 {[%emt 0:00:56]} Qa5 {[%emt 0:14:32]} (14... b4 $11 {should be considered.}) 15. Ne3 $14 {[%emt 0:04:45]} O-O-O {[%emt 0:04:45]} (15... Qc7 $11 {keeps the balance.}) 16. Ng4 $16 {[%emt 0:01:10]} Bd6 {[%emt 0:05:28]} 17. h5 {[%emt 0:01:09]} ({White should play} 17. Nfe5 $16 Rhf8 18. Nxd7 Rxd7 19. Ne5) 17... Rhe8 {[%emt 0:04:42]} (17... Nb6 $11) 18. Nge5 $14 {[%emt 0:01:08]} Re7 {[%emt 0:01:09]} 19. Rh3 {[%emt 0:03:12]} Kb8 {[%emt 0:08:22]} 20. Ra1 {[%emt 0:04:38]} (20. Nxd7+ $14 Rdxd7 21. Ne5) 20... f6 {[%emt 0:01:43]} 21. Nf7 {[%emt 0:15:45]} Rxf7 {[%emt 0:01:05]} 22. Qxe6 {[%emt 0:00:06]} Ne5 $1 {[%emt 0:01:21]} 23. dxe5 {[%emt 0:00:04]} (23. Nxe5 $2 Re7 $19) 23... Re7 {[%emt 0:00:07]} 24. Qxd6+ {[%emt 0:00:03]} Rxd6 {[%emt 0:00:05]} 25. exd6 {[%emt 0:00:04]} Rd7 {[%emt 0:03:16]} 26. Nd4 {[%emt 0:00:43]} b4 {[%emt 0:01:43]} 27. Re3 {[%emt 0:03:28]} Rxd6 {[%emt 0:02:58]} 28. Ree1 {[%emt 0:03:30]} (28. Re7 $11) 28... Qc5 {[%emt 0:01:06]} (28... Qb6 $1 $15 29. Nf5 Rd7) 29. Nb3 {[%emt 0:01:18]} Qb6 {[%emt 0:00:54]} 30. Re7 $1 {[%emt 0:02:55]} Re6 {[%emt 0:01:24]} 31. Rxg7 {[%emt 0:01:13]} d4 {[%emt 0:00:39]} 32. axb4 {[%emt 0:01:31]} Qxb4 {[%emt 0:00:06]} 33. Rd7 {[%emt 0:01:56]} Re5 {[%emt 0:01:42]} 34. Nxd4 $2 {[%emt 0:05:30]} (34. Rd8+ $11 Ka7 35. Rxd4) 34... Qxb2 $19 {[%emt 0:01:00]} 35. Rd1 {[%emt 0:02:33]} Rxh5 {[%emt 0:00:09]} 36. Kg1 {[%emt 0:00:56] [#]} Qa2 {[%emt 0:02:11]} ({Better is} 36... Ra5 $1 $17 {Hoping for ...Kc8.} 37. Bf1 Ra1 38. Rxa1 Qxa1) 37. Rg7 $2 {[%emt 0:11:45][%mdl 8192]} (37. Bf5 $11 {and White is okay.}) 37... Rg5 $19 {[%emt 0:00:26]} 38. Rxg5 {[%emt 0:00:08]} hxg5 {[%emt 0:00:01]} ({But not} 38... fxg5 39. Nb3 $19) 39. Nb3 {[%emt 0:01:59]} Ka7 {[%emt 0:00:29]} 40. Bf5 {[%emt 0:01:54]} (40. Ra1 $142 Qb2 41. Kf1) 40... Qb2 $19 {[%emt 0:01:17]} 41. Re1 {[%emt 0:01:20]} Qa3 {[%emt 0:00:30]} (41... Bd5 $142 {[%cal Oa6a5]} 42. Rd1 Bxb3 43. cxb3 Qxb3 44. Rd7+ Kb8) 42. Ra1 {[%emt 0:00:42]} (42. Bd3 {is the only way for White.}) 42... Qb4 {[%emt 0:00:11]} (42... Qd6 $142 {And now ...Qd5 would win.} 43. Bd3 Qc6) 43. Bd3 $19 {[%emt 0:00:24]} g4 {[%emt 0:00:40]} 44. Rd1 $2 {[%emt 0:00:42]} (44. g3) 44... Bd5 $2 {[%emt 0:01:16]} (44... a5 $19 {is more deadly.} 45. Bf1 g3 (45... a4 $2 46. Rd4 $19) 46. fxg3 Bc6) 45. Nd2 $2 {[%emt 0:00:19][%mdl 8192]} (45. Bf1 $17 Bc6 (45... Bxb3 46. cxb3 g3 47. Rd3 $17) 46. Rd4) 45... a5 $19 {[%emt 0:00:13]} 46. Nf1 {[%emt 0:00:32]} a4 {[%emt 0:00:13]} 47. Ne3 {[%emt 0:00:02]} Be6 {[%emt 0:00:16]} 48. c4 {[%emt 0:00:27]} a3 {[%emt 0:00:53]} 49. Nc2 {[%emt 0:00:41]} Qb2 {[%emt 0:00:05]} 50. Ra1 {[%emt 0:00:57]} a2 {[%emt 0:00:04]} 51. Kh2 {[%emt 0:00:31]} Kb6 {[%emt 0:00:34]} 52. Re1 {[%emt 0:00:23]} Bd7 {[%emt 0:00:27]} 53. Re7 {[%emt 0:00:32]} Ba4 {[%emt 0:00:13]} ({Not} 53... a1=B 54. Rxd7 Qb1 55. g3 $11) 54. c5+ {[%emt 0:00:40]} Kxc5 {[%emt 0:00:15]} 55. Rc7+ {[%emt 0:00:25]} Kd6 {[%emt 0:00:05]} 0-1

[Event "Baku Open 2024"]
[Site "Baku"]
[Date "2024.07.04"]
[Round "6.17"]
[White "Moosavifar, Seyed Abolfazl"]
[Black "Manafov, Vugar"]
[Result "0-1"]
[ECO "B42"]
[WhiteElo "2283"]
[BlackElo "2430"]
[Annotator "RC"]
[PlyCount "140"]
[EventDate "2024.06.29"]
[EventType "swiss"]
[EventCountry "AZE"]
[SourceTitle "playchess.com"]
[Source "ChessBase"]
[SourceQuality "1"]
[TimeControl "5400+30"]

1. e4 {[%emt 0:00:49]} c5 {[%emt 0:00:04]} 2. Nf3 {[%emt 0:00:03]} e6 {[%emt 0:00:09]} 3. d4 {[%emt 0:00:02]} cxd4 {[%emt 0:00:05]} 4. Nxd4 {[%emt 0:00:04]} a6 {[%emt 0:00:08]} 5. Bd3 {[%emt 0:00:04]} g6 {[%emt 0:00:10]} 6. O-O {[%emt 0:03:12]} Bg7 {[%emt 0:00:24]} 7. Nb3 {[%emt 0:00:11]} Nf6 {[%emt 0:00:25]} 8. c4 {[%emt 0:02:44]} Qc7 {[%emt 0:01:29]} 9. Nc3 {[%emt 0:00:53]} O-O {[%emt 0:00:43]} 10. Be3 {[%emt 0:00:43]} d6 {[%emt 0:01:14]} 11. f4 {[%emt 0:01:50]} Nbd7 {[%emt 0:02:04]} 12. a4 {[%emt 0:12:29]} b6 {[%emt 0:04:41]} 13. a5 {[%emt 0:07:41]} bxa5 {[%emt 0:01:55]} 14. Rxa5 {[%emt 0:01:11]} Rb8 {[%emt 0:01:19]} 15. Ra3 {[%emt 0:01:35]} Rd8 {[%emt 0:06:16]} 16. Qe2 {[%emt 0:08:27]} Bf8 {[%emt 0:07:12]} 17. Rc1 {[%emt 0:08:21]} Bb7 {[%emt 0:18:01]} 18. h3 {[%emt 0:12:22]} Ba8 {[%emt 0:02:23]} 19. Rc2 {[%emt 0:08:19]} Rdc8 {[%emt 0:01:59]} 20. c5 {[%emt 0:07:46]} dxc5 {[%emt 0:02:28]} 21. Bxa6 {[%emt 0:00:12]} c4 {[%emt 0:02:29]} 22. Nd4 {[%emt 0:03:55]} Bxa3 {[%emt 0:01:57]} 23. Bxc8 {[%emt 0:00:03]} Bf8 {[%emt 0:12:19]} 24. Ba6 {[%emt 0:06:16]} Nxe4 {[%emt 0:01:39]} 25. Qxc4 {[%emt 0:04:09]} Bc5 {[%emt 0:07:44]} 26. Kh2 {[%emt 0:03:20]} Rb4 {[%emt 0:14:41]} 27. Qxb4 {[%emt 0:03:05]} Bxb4 {[%emt 0:00:13]} 28. Nxe4 {[%emt 0:00:01]} Qa7 {[%emt 0:02:27]} 29. Nf6+ {[%emt 0:03:03]} Kh8 {[%emt 0:01:13]} 30. Rc8+ {[%emt 0:00:12]} Nf8 {[%emt 0:01:13]} 31. Nf5 {[%emt 0:01:55]} Qxa6 {[%emt 0:00:23]} 32. Bd4 {[%emt 0:00:18]} e5 {[%emt 0:02:17]} 33. Bxe5 {[%emt 0:00:19]} gxf5 {[%emt 0:00:06]} 34. Rxa8 {[%emt 0:00:46]} Qc6 {[%emt 0:00:39]} 35. Rc8 {[%emt 0:00:28]} Qa6 {[%emt 0:00:45]} 36. Ra8 {[%emt 0:00:47]} Qc6 {[%emt 0:00:39]} 37. Rc8 {[%emt 0:00:42]} Qe6 {[%emt 0:01:50]} 38. Re8 {[%emt 0:00:38]} Qc6 {[%emt 0:00:34]} 39. Rc8 {[%emt 0:00:28]} Qe6 {[%emt 0:00:08]} 40. Rb8 {[%emt 0:00:29]} Be7 {[%emt 0:01:23]} 41. Re8 {[%emt 0:00:27]} Kg7 {[%emt 0:02:25]} 42. Rxe7 {[%emt 0:00:34]} Qc6 {[%emt 0:00:44]} 43. Re8 {[%emt 0:00:28]} Ng6 {[%emt 0:00:24]} 44. Rg8+ {[%emt 0:00:29]} Kh6 {[%emt 0:00:01]} 45. Rb8 {[%emt 0:00:34]} Nxe5 {[%emt 0:00:51]} 46. fxe5 {[%emt 0:00:01]} Qc5 {[%emt 0:00:43]} 47. Re8 {[%emt 0:00:15]} Qd4 {[%emt 0:00:21]} 48. b3 {[%emt 0:00:16]} Qf4+ {[%emt 0:00:28]} 49. Kh1 {[%emt 0:00:02]} Qc1+ {[%emt 0:00:24]} 50. Kh2 {[%emt 0:00:01]} Qc5 {[%emt 0:00:26]} 51. Kh1 {[%emt 0:01:00]} Qd4 {[%emt 0:00:51]} 52. Kh2 {[%emt 0:00:36]} Qf4+ {[%emt 0:00:12]} 53. Kh1 {[%emt 0:00:02]} Qc1+ {[%emt 0:00:03]} 54. Kh2 {[%emt 0:00:02]} Qc5 {[%emt 0:00:02]} 55. Kh1 {[%emt 0:00:37]} Kg5 {[%emt 0:00:51]} 56. Nxh7+ {[%emt 0:01:06]} Kf4 {[%emt 0:00:08]} 57. Kh2 {[%emt 0:00:26]} Qf2 {[%emt 0:01:14]} 58. Rg8 {[%emt 0:01:17]} Qe1 {[%emt 0:00:53]} 59. Ng5 {[%emt 0:01:55]} Qg3+ {[%emt 0:00:05]} 60. Kh1 {[%emt 0:00:00]} Ke3 {[%emt 0:00:05]} 61. Rg7 {[%emt 0:00:25]} Ke2 {[%emt 0:00:11]} 62. Rxf7 {[%emt 0:00:31]} Qxg5 {[%emt 0:00:19]} 63. Ra7 {[%emt 0:00:28]} Qc1+ {[%emt 0:01:24]} 64. Kh2 {[%emt 0:00:01]} Qf4+ {[%emt 0:00:13]} 65. Kh1 {[%emt 0:00:04]} Qd4 {[%emt 0:00:43]} 66. Rf7 {[%emt 0:00:59]} Qa1+ {[%emt 0:00:04]} 67. Kh2 {[%emt 0:00:01]} Qxe5+ {[%emt 0:00:08]} 68. Kg1 {[%emt 0:00:08]} Qc5+ {[%emt 0:00:10]} 69. Kh2 {[%emt 0:00:05]} Kf2 {[%emt 0:00:10]} 70. g3 {[%emt 0:00:15]} Qd5 {[%emt 0:00:07]} 0-1

[Event "Baku Open 2024"]
[Site "Baku"]
[Date "2024.07.04"]
[Round "6.18"]
[White "Suyarov, Mukhammadzokhid"]
[Black "Suleymanli, Suleyman"]
[Result "0-1"]
[ECO "C11"]
[WhiteElo "2430"]
[BlackElo "2262"]
[Annotator "TA"]
[PlyCount "46"]
[EventDate "2024.06.29"]
[EventType "swiss"]
[EventCountry "AZE"]
[SourceTitle "playchess.com"]
[Source "ChessBase"]
[SourceQuality "1"]
[TimeControl "5400+30"]

{[%evp 13,46,-8,-10,0,0,-16,0,-105,-97,-111,-33,-47,-28,-76,-81,-80,-60,-57,-59,-183,-153,-222,-158,-172,-192,-177,-133,-316,-311,-419,-455,-481,-275,-1030,-1027]} 1. e4 {[%emt 0:00:03][%cal Be2e4,Be4e5][%mdl 32]} e6 {[%emt 0:00:03]} 2. d4 {[%emt 0:00:39]} d5 {[%emt 0:00:04]} 3. Nc3 {[%emt 0:00:33]} Nf6 {[%emt 0:00:07]} 4. e5 {[%emt 0:00:36]} Nfd7 {[%emt 0:02:36]} 5. Nce2 {[%emt 0:00:26]} c5 {[%emt 0:01:06]} 6. c3 {[%emt 0:00:25]} Nc6 {[%emt 0:00:06]} 7. Nf3 {[%emt 0:00:21]} Be7 {[%emt 0:00:20]} 8. a3 {[%emt 0:01:36]} O-O {[%emt 0:00:07]} 9. g3 {[%emt 1:30:21]} Qa5 {[%emt 0:03:56]} 10. Ra2 (10. Bd2 $11) 10... cxd4 $17 {[%emt 0:00:30] Black is more active.} 11. b4 {[%emt 0:00:00]} Qb6 {[%emt 0:05:13]} (11... Qc7 $17 12. cxd4 b5) 12. cxd4 $15 {[%emt 0:00:00]} f6 $1 $40 {[%emt 0:05:42][%mdl 128] White needs to defend precisely.} 13. Be3 {[%emt 0:00:00]} (13. exf6 $1 $11 Nxf6 14. Bg2) 13... fxe5 $17 {[%emt 0:03:14]} 14. Nxe5 {[%emt 0:00:00]} Ndxe5 {[%emt 0:01:19]} 15. dxe5 {[%emt 0:00:00]} Nxe5 {[%emt 0:00:42]} 16. Nd4 {[%emt 0:00:00] Wards off Nf3+} (16. Bg2 $1 $15 Qb5 17. f4 (17. O-O a5 $15)) 16... Qd6 {[%emt 0:07:43]} 17. Bf4 {[%emt 0:00:00] [#]} (17. f4 $17 Nc4 18. Bf2) 17... Rxf4 $1 {[%emt 0:03:51][%mdl 512]} 18. gxf4 {[%emt 0:00:00]} Ng6 {[%emt 0:00:02]} 19. f5 {[%emt 0:00:00]} Nf4 {[%emt 0:04:11][%mdl 1024] ...a5 would now be deadly. Black has strong compensation.} (19... exf5 20. Bg2 $17) 20. Be2 $2 {[%emt 0:00:00] Loses the game.} (20. Rg1 $17 {was necessary.}) 20... e5 $19 {[%emt 0:01:03]} (20... exf5 21. Bf3 $17) 21. Nb5 {[%emt 0:00:00]} Qb6 {[%emt 0:12:13]} 22. Nc3 {[%emt 0:00:00]} Bh4 {[%emt 0:02:59]} ({But not} 22... Qc6 23. Qb3 Bxf5 24. Bb5 $19) (22... Bxf5 $142 {Threatens to win with ...Bh4.} 23. Nxd5 Nxd5 (23... Qe6 24. Nxe7+ Qxe7 25. Rg1 $15) 24. Qxd5+ Be6) 23. Bf3 $2 {[%emt 0:00:00] [#]} (23. O-O Bxf5 (23... Qc6 24. Nxd5 Nh3+ 25. Kh1 $11) 24. Bf3) 23... Qe3+ {[%emt 0:03:12] Weighted Error Value: White=0.98/Black=0.35.  Loses game:     	White=1     	---        Mistake:       	White=5     	Black=2      Inaccurate:     	White=1     	---        OK:         	White=2     	Black=3      Best:        	White=1     	Black=4      Strong:       	---       	Black=1} ({Not} 23... Bxf5 24. Nxd5 Qg6 25. Nxf4 exf4 26. Rd2 $15) 0-1